[Event "*** Titled Tuesday Blitz"]
[Site "Chess.com"]
[Date "2018.06.05"]
[Round "9"]
[White "OparinGrigoriy"]
[Black "Amirreza_p"]
[Result "1-0"]
[WhiteElo "2894"]
[BlackElo "2714"]
[TimeControl "180+2"]
[EndTime "15:08:35 PDT"]
[Termination "OparinGrigoriy won by resignation"]

1. Nf3 {[%clk 0:03:01.9]} 1... d5 {[%clk 0:03:00.8]} 2. g3 {[%clk 0:03:03]} 2...
c6 {[%clk 0:03:01.9]} 3. Bg2 {[%clk 0:03:04.4]} 3... Bg4 {[%clk 0:03:03.5]} 4.
O-O {[%clk 0:03:05.6]} 4... e6 {[%clk 0:03:04.9]} 5. c4 {[%clk 0:03:07]} 5...
Nd7 {[%clk 0:03:06.2]} 6. d3 {[%clk 0:03:07.4]} 6... Ngf6 {[%clk 0:02:58.9]} 7.
cxd5 {[%clk 0:03:01.8]} 7... exd5 {[%clk 0:02:58.9]} 8. Nc3 {[%clk 0:03:03.1]}
8... Bc5 {[%clk 0:02:50.9]} 9. Qb3 {[%clk 0:03:03.6]} 9... Bb6 {[%clk
0:02:47.1]} 10. Na4 {[%clk 0:03:03.9]} 10... O-O {[%clk 0:02:46.9]} 11. Nxb6
{[%clk 0:03:05]} 11... Qxb6 {[%clk 0:02:48.8]} 12. Qc2 {[%clk 0:03:05.6]} 12...
Rfe8 {[%clk 0:02:49.5]} 13. b3 {[%clk 0:03:01.9]} 13... c5 {[%clk 0:02:43.9]}
14. e3 {[%clk 0:02:58.7]} 14... d4 {[%clk 0:02:38.8]} 15. e4 {[%clk 0:02:56.9]}
15... Rac8 {[%clk 0:02:38.8]} 16. h3 {[%clk 0:02:54.7]} 16... Bxf3 {[%clk
0:02:38.8]} 17. Bxf3 {[%clk 0:02:56.6]} 17... Ne5 {[%clk 0:02:40.7]} 18. Bg2
{[%clk 0:02:55.9]} 18... Nc6 {[%clk 0:02:41.9]} 19. a3 {[%clk 0:02:50.7]} 19...
a5 {[%clk 0:02:38.9]} 20. Rb1 {[%clk 0:02:49.7]} 20... Na7 {[%clk 0:02:39.8]}
21. Bb2 {[%clk 0:02:36.2]} 21... Nb5 {[%clk 0:02:40.6]} 22. Rfc1 {[%clk
0:02:37.7]} 22... Qd8 {[%clk 0:02:34.5]} 23. f4 {[%clk 0:02:35.3]} 23... b6
{[%clk 0:02:34.8]} 24. Qf2 {[%clk 0:02:21.3]} 24... Qd7 {[%clk 0:02:30.2]} 25.
a4 {[%clk 0:02:13.9]} 25... Na7 {[%clk 0:02:27.1]} 26. Qf3 {[%clk 0:02:15.1]}
26... Rcd8 {[%clk 0:02:25.6]} 27. g4 {[%clk 0:02:07.8]} 27... Qe7 {[%clk
0:02:20.8]} 28. g5 {[%clk 0:02:04.7]} 28... Nd7 {[%clk 0:02:21.3]} 29. e5 {[%clk
0:02:05.8]} 29... Rc8 {[%clk 0:02:15.6]} 30. Re1 {[%clk 0:02:06.2]} 30... Nc6
{[%clk 0:02:16.4]} 31. h4 {[%clk 0:01:56.8]} 31... Nb4 {[%clk 0:02:15.7]} 32. h5
{[%clk 0:01:57.8]} 32... Qe6 {[%clk 0:02:07.8]} 33. Bh3 {[%clk 0:01:57.1]} 33...
Qe7 {[%clk 0:02:05.1]} 34. Re4 {[%clk 0:01:57.1]} 34... Rcd8 {[%clk 0:02:04.5]}
35. Rf1 {[%clk 0:01:50.3]} 35... Nb8 {[%clk 0:01:37.5]} 36. Bc1 {[%clk
0:01:39.6]} 36... N8c6 {[%clk 0:01:38]} 37. Qg3 {[%clk 0:01:34.2]} 37... Qc7
{[%clk 0:01:30.4]} 38. f5 {[%clk 0:01:31.2]} 38... Nxe5 {[%clk 0:01:27.2]} 39.
Bf4 {[%clk 0:01:32.1]} 39... Nbc6 {[%clk 0:01:28]} 40. Rfe1 {[%clk 0:01:31.2]}
40... Rd5 {[%clk 0:01:24.3]} 41. f6 {[%clk 0:01:28.5]} 41... Qd8 {[%clk
0:01:16.5]} 42. Bxe5 {[%clk 0:01:18.9]} 42... Nxe5 {[%clk 0:01:11.7]} 43. Rxe5
{[%clk 0:01:20.8]} 1-0

[Event "*** Titled Tuesday Blitz"]
[Site "Chess.com"]
[Date "2018.06.05"]
[Round "9"]
[White "akashcheck"]
[Black "Jadeit90"]
[Result "0-1"]
[WhiteElo "2161"]
[BlackElo "2194"]
[TimeControl "180+2"]
[EndTime "15:08:45 PDT"]
[Termination "Jadeit90 won by resignation"]

1. e4 {[%clk 0:03:01.9]} 1... g6 {[%clk 0:02:56.3]} 2. d4 {[%clk 0:03:01.2]}
2... Bg7 {[%clk 0:02:56.3]} 3. Nc3 {[%clk 0:03:03.1]} 3... c5 {[%clk 0:02:55.2]}
4. d5 {[%clk 0:03:02.7]} 4... d6 {[%clk 0:02:56.2]} 5. Nf3 {[%clk 0:03:00.4]}
5... Nf6 {[%clk 0:02:57.5]} 6. Be2 {[%clk 0:03:01.4]} 6... O-O {[%clk
0:02:57.4]} 7. O-O {[%clk 0:03:02.9]} 7... e6 {[%clk 0:02:58.8]} 8. dxe6 {[%clk
0:03:02.8]} 8... Bxe6 {[%clk 0:02:59.8]} 9. Bf4 {[%clk 0:03:03.8]} 9... d5
{[%clk 0:03:00.4]} 10. exd5 {[%clk 0:02:59.5]} 10... Nxd5 {[%clk 0:03:01.5]} 11.
Nxd5 {[%clk 0:03:01.1]} 11... Bxd5 {[%clk 0:03:02.9]} 12. c3 {[%clk 0:03:02.7]}
12... Nc6 {[%clk 0:03:03.9]} 13. Qd2 {[%clk 0:02:58.5]} 13... Re8 {[%clk
0:03:04.7]} 14. Rfe1 {[%clk 0:02:58.6]} 14... Be6 {[%clk 0:02:59.3]} 15. Rad1
{[%clk 0:02:53.3]} 15... Qxd2 {[%clk 0:02:54.8]} 16. Rxd2 {[%clk 0:02:55.2]}
16... Bxa2 {[%clk 0:02:55.8]} 17. Ra1 {[%clk 0:02:50.6]} 17... Be6 {[%clk
0:02:55.5]} 18. Be3 {[%clk 0:02:51.9]} 18... b6 {[%clk 0:02:45.1]} 19. Bb5
{[%clk 0:02:51.5]} 19... Rec8 {[%clk 0:02:46.3]} 20. Bf4 {[%clk 0:02:46.5]}
20... Na5 {[%clk 0:02:45.8]} 21. Re1 {[%clk 0:02:44.8]} 21... Nb3 {[%clk
0:02:43]} 22. Rd6 {[%clk 0:02:40.1]} 22... a6 {[%clk 0:02:39.9]} 23. Bc6 {[%clk
0:02:35.5]} 23... Ra7 {[%clk 0:02:35.5]} 24. Ng5 {[%clk 0:02:35.5]} 24... Bf8
{[%clk 0:02:30.4]} 25. Rdxe6 {[%clk 0:02:14.9]} 25... fxe6 {[%clk 0:02:25]} 26.
Bf3 {[%clk 0:02:02]} 26... Bh6 {[%clk 0:02:12.7]} 27. Nxe6 {[%clk 0:01:49.3]}
27... Bxf4 {[%clk 0:02:12.4]} 28. Nxf4 {[%clk 0:01:51.2]} 28... Kg7 {[%clk
0:02:09.5]} 29. Bd5 {[%clk 0:01:49.2]} 29... c4 {[%clk 0:02:08.4]} 30. Ne6+
{[%clk 0:01:48.1]} 30... Kf6 {[%clk 0:02:07.8]} 31. g4 {[%clk 0:01:49.6]} 31...
Re7 {[%clk 0:02:05.3]} 32. f4 {[%clk 0:01:50.2]} 32... Rce8 {[%clk 0:01:43.2]}
33. g5+ {[%clk 0:01:50.4]} 33... Kf5 {[%clk 0:01:44.4]} 34. Re5+ {[%clk
0:01:50.8]} 34... Kg4 {[%clk 0:01:45]} 35. Kg2 {[%clk 0:01:47.7]} 35... Rxe6
{[%clk 0:01:38.1]} 36. Rxe6 {[%clk 0:01:39.7]} 36... Rxe6 {[%clk 0:01:38.1]} 37.
Bxe6+ {[%clk 0:01:41.6]} 37... Kxf4 {[%clk 0:01:36.1]} 38. Bxc4 {[%clk
0:01:43.5]} 38... Nc5 {[%clk 0:01:34.7]} 39. h4 {[%clk 0:01:09.4]} 39... Kg4
{[%clk 0:01:26.9]} 40. Bg8 {[%clk 0:01:05.3]} 40... Kxh4 {[%clk 0:01:28.1]} 41.
Bxh7 {[%clk 0:01:07.2]} 41... Kxg5 {[%clk 0:01:29.2]} 42. Bg8 {[%clk 0:01:07.7]}
42... Na4 {[%clk 0:01:29.5]} 43. Bc4 {[%clk 0:01:03.2]} 43... b5 {[%clk
0:01:29.3]} 44. Bd5 {[%clk 0:01:04.3]} 44... Nxb2 {[%clk 0:01:30.2]} 45. Bb7
{[%clk 0:01:05.2]} 45... Na4 {[%clk 0:01:31.4]} 46. Bxa6 {[%clk 0:01:05.5]}
46... Nxc3 {[%clk 0:01:32.7]} 47. Kf3 {[%clk 0:01:07.4]} 47... b4 {[%clk
0:01:33.1]} 48. Ke3 {[%clk 0:01:08.5]} 48... b3 {[%clk 0:01:34.1]} 0-1

[Event "*** Titled Tuesday Blitz"]
[Site "Chess.com"]
[Date "2018.06.05"]
[Round "9"]
[White "lucasmito"]
[Black "Quiet_Desperation"]
[Result "1-0"]
[WhiteElo "2334"]
[BlackElo "2366"]
[TimeControl "180+2"]
[EndTime "15:08:45 PDT"]
[Termination "lucasmito won by resignation"]

1. e4 {[%clk 0:03:01.9]} 1... Nc6 {[%clk 0:02:56.8]} 2. d4 {[%clk 0:02:59.4]}
2... d5 {[%clk 0:02:55.5]} 3. exd5 {[%clk 0:03:01.3]} 3... Qxd5 {[%clk
0:02:56.1]} 4. Nf3 {[%clk 0:03:02.7]} 4... e5 {[%clk 0:02:57.1]} 5. Nc3 {[%clk
0:03:00.3]} 5... Bb4 {[%clk 0:02:55.1]} 6. Bd2 {[%clk 0:03:00.6]} 6... Bxc3
{[%clk 0:02:53.2]} 7. bxc3 {[%clk 0:03:02.5]} 7... Bg4 {[%clk 0:02:43.2]} 8. Be2
{[%clk 0:02:34.4]} 8... Nge7 {[%clk 0:02:12.1]} 9. O-O {[%clk 0:02:32.2]} 9...
exd4 {[%clk 0:02:08.4]} 10. cxd4 {[%clk 0:02:32.3]} 10... O-O-O {[%clk
0:02:04.5]} 11. c4 {[%clk 0:02:32.8]} 11... Qd6 {[%clk 0:01:42.3]} 12. d5 {[%clk
0:02:31]} 12... Bxf3 {[%clk 0:01:42.7]} 13. Bxf3 {[%clk 0:02:32.9]} 13... Ne5
{[%clk 0:01:43.6]} 14. Be2 {[%clk 0:02:30.1]} 14... Rhe8 {[%clk 0:01:39.2]} 15.
Qa4 {[%clk 0:02:29]} 15... Kb8 {[%clk 0:01:38.4]} 16. Be3 {[%clk 0:02:26.9]}
16... Nc8 {[%clk 0:01:36.9]} 17. Rfd1 {[%clk 0:02:13.5]} 17... h5 {[%clk
0:01:36.3]} 18. c5 {[%clk 0:02:01.6]} 18... Qg6 {[%clk 0:01:23.3]} 19. Rab1
{[%clk 0:01:52.5]} 19... Ng4 {[%clk 0:01:20.5]} 20. Ba6 {[%clk 0:01:21.9]} 20...
b6 {[%clk 0:01:13.9]} 21. Bxc8 {[%clk 0:00:55.6]} 21... Nxe3 {[%clk 0:01:01]}
22. fxe3 {[%clk 0:00:54.9]} 22... Rxc8 {[%clk 0:00:59.9]} 23. Qa6 {[%clk
0:00:51.9]} 23... Ka8 {[%clk 0:00:41.3]} 24. d6 {[%clk 0:00:25.6]} 24... cxd6
{[%clk 0:00:21.6]} 25. cxb6 {[%clk 0:00:23.3]} 1-0

[Event "*** Titled Tuesday Blitz"]
[Site "Chess.com"]
[Date "2018.06.05"]
[Round "9"]
[White "cukus"]
[Black "Shaman91"]
[Result "1-0"]
[WhiteElo "2422"]
[BlackElo "2547"]
[TimeControl "180+2"]
[EndTime "15:08:52 PDT"]
[Termination "cukus won by resignation"]

1. e4 {[%clk 0:03:01.9]} 1... c5 {[%clk 0:02:58.1]} 2. Nf3 {[%clk 0:03:02.7]}
2... d6 {[%clk 0:02:58.7]} 3. d4 {[%clk 0:03:03]} 3... cxd4 {[%clk 0:02:59.9]}
4. Nxd4 {[%clk 0:03:04.9]} 4... Nf6 {[%clk 0:03:00.9]} 5. Nc3 {[%clk 0:03:04.6]}
5... Nc6 {[%clk 0:03:02.1]} 6. Bg5 {[%clk 0:03:05.1]} 6... Bd7 {[%clk
0:02:59.8]} 7. Qd2 {[%clk 0:02:59.9]} 7... Rc8 {[%clk 0:03:00.2]} 8. f4 {[%clk
0:02:48.6]} 8... h6 {[%clk 0:02:58]} 9. Bxf6 {[%clk 0:02:45.8]} 9... gxf6 {[%clk
0:02:59.8]} 10. O-O-O {[%clk 0:02:41.8]} 10... Nxd4 {[%clk 0:02:59.3]} 11. Qxd4
{[%clk 0:02:42.5]} 11... Qa5 {[%clk 0:03:00.7]} 12. Kb1 {[%clk 0:02:37]} 12...
Qc5 {[%clk 0:03:01.1]} 13. Qd2 {[%clk 0:02:29.5]} 13... f5 {[%clk 0:03:01.8]}
14. exf5 {[%clk 0:02:26]} 14... Bg7 {[%clk 0:02:57.8]} 15. f6 {[%clk 0:02:17.6]}
15... Bxf6 {[%clk 0:02:48.5]} 16. Ne4 {[%clk 0:02:17.7]} 16... Qb6 {[%clk
0:01:54.7]} 17. Nxf6+ {[%clk 0:02:17.7]} 17... exf6 {[%clk 0:01:56.4]} 18. Bd3
{[%clk 0:02:12.3]} 18... Kd8 {[%clk 0:01:38.9]} 19. Rhe1 {[%clk 0:02:04.9]}
19... Qc5 {[%clk 0:01:38.8]} 20. f5 {[%clk 0:01:55.1]} 20... h5 {[%clk
0:01:21.3]} 21. g3 {[%clk 0:01:53.9]} 21... Kc7 {[%clk 0:01:20.3]} 22. Re7
{[%clk 0:01:39.8]} 22... Rhf8 {[%clk 0:00:49.7]} 23. Bb5 {[%clk 0:01:17.1]}
23... Rcd8 {[%clk 0:00:49.2]} 24. Ba4 {[%clk 0:00:54.8]} 24... Kc8 {[%clk
0:00:33.6]} 25. b4 {[%clk 0:00:53.3]} 25... Qxf5 {[%clk 0:00:27.7]} 26. Qxd6
{[%clk 0:00:45.3]} 26... Qxc2+ {[%clk 0:00:08.2]} 27. Bxc2 {[%clk 0:00:44.3]}
1-0

[Event "*** Titled Tuesday Blitz"]
[Site "Chess.com"]
[Date "2018.06.05"]
[Round "9"]
[White "dmosesov"]
[Black "ChainsOfFantasia"]
[Result "1-0"]
[WhiteElo "2192"]
[BlackElo "2372"]
[TimeControl "180+2"]
[EndTime "15:08:55 PDT"]
[Termination "dmosesov won by checkmate"]

1. e4 {[%clk 0:03:01.7]} 1... c6 {[%clk 0:03:00.5]} 2. d4 {[%clk 0:03:01.1]}
2... d5 {[%clk 0:03:02.4]} 3. e5 {[%clk 0:03:02.4]} 3... Bf5 {[%clk 0:03:03.2]}
4. g4 {[%clk 0:03:03.2]} 4... Be4 {[%clk 0:03:03.4]} 5. f3 {[%clk 0:03:04.2]}
5... Bg6 {[%clk 0:03:04.9]} 6. h4 {[%clk 0:03:05.7]} 6... h5 {[%clk 0:03:05.2]}
7. e6 {[%clk 0:03:06.1]} 7... hxg4 {[%clk 0:03:02.4]} 8. fxg4 {[%clk 0:03:00.5]}
8... Be4 {[%clk 0:03:02.5]} 9. exf7+ {[%clk 0:02:59.7]} 9... Kxf7 {[%clk
0:03:03.7]} 10. Nf3 {[%clk 0:02:59.4]} 10... Ke8 {[%clk 0:02:36.7]} 11. Bd3
{[%clk 0:02:57.4]} 11... Nf6 {[%clk 0:02:31.4]} 12. g5 {[%clk 0:02:45.5]} 12...
Bxd3 {[%clk 0:02:27.2]} 13. Qxd3 {[%clk 0:02:38.4]} 13... Ne4 {[%clk 0:02:28.2]}
14. Nc3 {[%clk 0:02:39.2]} 14... Nxc3 {[%clk 0:02:26.5]} 15. bxc3 {[%clk
0:02:33.3]} 15... Qd6 {[%clk 0:02:26.9]} 16. Kf2 {[%clk 0:02:32.1]} 16... Nd7
{[%clk 0:02:27.3]} 17. Rb1 {[%clk 0:02:26.8]} 17... Nb6 {[%clk 0:02:27.4]} 18.
Ne5 {[%clk 0:02:02.8]} 18... Rb8 {[%clk 0:01:53]} 19. Bf4 {[%clk 0:01:55.1]}
19... Qe6 {[%clk 0:01:33.1]} 20. Rbe1 {[%clk 0:01:50]} 20... Kd8 {[%clk
0:01:26.5]} 21. Kg3 {[%clk 0:01:33]} 21... Rc8 {[%clk 0:01:23.2]} 22. Rhf1
{[%clk 0:01:15.4]} 22... Rh5 {[%clk 0:01:11.3]} 23. Nf7+ {[%clk 0:01:06.8]}
23... Qxf7 {[%clk 0:00:53.8]} 24. Bc7+ {[%clk 0:01:07.2]} 24... Kxc7 {[%clk
0:00:55.1]} 25. Rxf7 {[%clk 0:01:05.7]} 25... Nd7 {[%clk 0:00:55]} 26. Rexe7
{[%clk 0:00:58.9]} 26... Bxe7 {[%clk 0:00:54.1]} 27. Rxe7 {[%clk 0:01:00.8]}
27... Rhh8 {[%clk 0:00:53.7]} 28. Qf5 {[%clk 0:00:59.4]} 28... Rcd8 {[%clk
0:00:52.4]} 29. Rxg7 {[%clk 0:00:56.9]} 29... Kd6 {[%clk 0:00:47.3]} 30. Qf4+
{[%clk 0:00:54.2]} 30... Ke6 {[%clk 0:00:46.1]} 31. Rg6+ {[%clk 0:00:48.6]}
31... Ke7 {[%clk 0:00:47]} 32. Qd6+ {[%clk 0:00:49.8]} 32... Kf7 {[%clk
0:00:46.6]} 33. Qe6+ {[%clk 0:00:43.7]} 33... Kf8 {[%clk 0:00:47.8]} 34. Qf5+
{[%clk 0:00:41.1]} 34... Ke7 {[%clk 0:00:47]} 35. Re6# {[%clk 0:00:41.3]} 1-0

[Event "*** Titled Tuesday Blitz"]
[Site "Chess.com"]
[Date "2018.06.05"]
[Round "9"]
[White "ChessWarrior7197"]
[Black "dalmatinac101"]
[Result "0-1"]
[WhiteElo "2685"]
[BlackElo "2726"]
[TimeControl "180+2"]
[EndTime "15:09:00 PDT"]
[Termination "dalmatinac101 won by resignation"]

1. e4 {[%clk 0:03:01.9]} 1... c5 {[%clk 0:03:00.4]} 2. Nf3 {[%clk 0:03:02.8]}
2... e6 {[%clk 0:03:01.9]} 3. d4 {[%clk 0:03:03.3]} 3... cxd4 {[%clk 0:03:03.8]}
4. Nxd4 {[%clk 0:03:04.7]} 4... Nc6 {[%clk 0:03:05.7]} 5. Nc3 {[%clk 0:03:04.3]}
5... Qc7 {[%clk 0:03:06.9]} 6. g3 {[%clk 0:03:05.4]} 6... a6 {[%clk 0:03:07.2]}
7. Bg2 {[%clk 0:03:06.8]} 7... d6 {[%clk 0:03:07.1]} 8. O-O {[%clk 0:03:07.7]}
8... Bd7 {[%clk 0:03:07.7]} 9. Nb3 {[%clk 0:03:06.8]} 9... Nf6 {[%clk
0:03:08.3]} 10. f4 {[%clk 0:03:08.1]} 10... Be7 {[%clk 0:03:08.2]} 11. a3 {[%clk
0:03:08]} 11... b5 {[%clk 0:03:07.7]} 12. Be3 {[%clk 0:03:06.9]} 12... Rb8
{[%clk 0:03:07.8]} 13. Qe2 {[%clk 0:03:01.2]} 13... O-O {[%clk 0:03:08.4]} 14.
g4 {[%clk 0:03:01.9]} 14... b4 {[%clk 0:03:00.5]} 15. axb4 {[%clk 0:03:01.8]}
15... Nxb4 {[%clk 0:03:02.1]} 16. g5 {[%clk 0:03:03]} 16... Ne8 {[%clk
0:03:03.3]} 17. Rf3 {[%clk 0:03:02.8]} 17... d5 {[%clk 0:02:42.8]} 18. exd5
{[%clk 0:02:57.7]} 18... Nxd5 {[%clk 0:02:40.3]} 19. Nxd5 {[%clk 0:02:58.2]}
19... exd5 {[%clk 0:02:42.2]} 20. f5 {[%clk 0:02:52.7]} 20... Nd6 {[%clk
0:02:20.7]} 21. Raf1 {[%clk 0:02:50.4]} 21... Rfe8 {[%clk 0:02:18.8]} 22. Qd1
{[%clk 0:02:28.8]} 22... Bf8 {[%clk 0:02:15]} 23. Bc1 {[%clk 0:02:26.6]} 23...
Bb5 {[%clk 0:02:15.6]} 24. Nd4 {[%clk 0:01:52.8]} 24... Bxf1 {[%clk 0:02:15.5]}
25. Bxf1 {[%clk 0:01:54.7]} 25... Ne4 {[%clk 0:02:14.7]} 26. Rh3 {[%clk
0:01:50.5]} 26... g6 {[%clk 0:02:13.3]} 27. fxg6 {[%clk 0:01:48.2]} 27... hxg6
{[%clk 0:02:10.7]} 28. c3 {[%clk 0:01:28.8]} 28... Qe5 {[%clk 0:02:05.3]} 29.
Qg4 {[%clk 0:01:23.1]} 29... Bc5 {[%clk 0:02:02]} 30. Be3 {[%clk 0:01:06.8]}
30... Rxb2 {[%clk 0:01:59.6]} 31. Qh4 {[%clk 0:01:07.6]} 31... Qg7 {[%clk
0:01:54.5]} 32. Ne2 {[%clk 0:00:34.8]} 32... Nxc3 {[%clk 0:01:38.4]} 33. Bxc5
{[%clk 0:00:29.6]} 33... Nxe2+ {[%clk 0:01:39.2]} 34. Kh1 {[%clk 0:00:24.6]}
34... Rb1 {[%clk 0:01:35.7]} 35. Kg2 {[%clk 0:00:19]} 35... Re4 {[%clk
0:01:24.9]} 36. Qf2 {[%clk 0:00:04.2]} 36... Nf4+ {[%clk 0:01:23.3]} 0-1

[Event "*** Titled Tuesday Blitz"]
[Site "Chess.com"]
[Date "2018.06.05"]
[Round "9"]
[White "djano"]
[Black "Hollywood_Chess"]
[Result "1-0"]
[WhiteElo "2369"]
[BlackElo "2216"]
[TimeControl "180+2"]
[EndTime "15:09:02 PDT"]
[Termination "djano won by resignation"]

1. d4 {[%clk 0:03:01.9]} 1... Nf6 {[%clk 0:02:59.2]} 2. c4 {[%clk 0:02:59.4]}
2... c6 {[%clk 0:03:00.6]} 3. Nc3 {[%clk 0:02:58.3]} 3... d5 {[%clk 0:03:00.9]}
4. cxd5 {[%clk 0:02:59.8]} 4... cxd5 {[%clk 0:03:01.8]} 5. Bf4 {[%clk
0:03:01.1]} 5... Nc6 {[%clk 0:03:00.3]} 6. e3 {[%clk 0:03:02.1]} 6... Bf5 {[%clk
0:03:00.6]} 7. Nf3 {[%clk 0:03:00]} 7... e6 {[%clk 0:03:01.5]} 8. Bb5 {[%clk
0:03:00.8]} 8... Rc8 {[%clk 0:03:00.9]} 9. Ne5 {[%clk 0:02:54.9]} 9... Bd6
{[%clk 0:02:55.9]} 10. Qa4 {[%clk 0:02:44.3]} 10... Qb6 {[%clk 0:02:40.1]} 11.
Nxc6 {[%clk 0:02:25]} 11... bxc6 {[%clk 0:02:40.3]} 12. Bxd6 {[%clk 0:02:19.2]}
12... cxb5 {[%clk 0:02:32.8]} 13. Nxb5 {[%clk 0:02:09.5]} 13... Rc4 {[%clk
0:02:07.1]} 14. Qxa7 {[%clk 0:01:44.3]} 14... Qxa7 {[%clk 0:01:49.8]} 15. Nxa7
{[%clk 0:01:46.2]} 15... Rc2 {[%clk 0:01:38.1]} 16. b4 {[%clk 0:01:31.4]} 16...
Kd7 {[%clk 0:01:27.8]} 17. Bc5 {[%clk 0:01:26.4]} 17... Bd3 {[%clk 0:01:27.2]}
18. f3 {[%clk 0:00:58.5]} 18... Re2+ {[%clk 0:01:19.5]} 19. Kd1 {[%clk
0:00:58.8]} 19... Rxg2 {[%clk 0:01:20.2]} 20. b5 {[%clk 0:00:53.8]} 20... Be2+
{[%clk 0:01:11.9]} 21. Kc1 {[%clk 0:00:53.7]} 21... Bxf3 {[%clk 0:01:13]} 22.
Rf1 {[%clk 0:00:53.4]} 22... Be4 {[%clk 0:01:11.4]} 23. Nc6 {[%clk 0:00:49.6]}
23... Rxh2 {[%clk 0:01:01.6]} 24. a4 {[%clk 0:00:46.6]} 24... Kc8 {[%clk
0:00:51.7]} 25. a5 {[%clk 0:00:45.7]} 25... Rc2+ {[%clk 0:00:51.3]} 26. Kd1
{[%clk 0:00:45]} 26... Ng4 {[%clk 0:00:50.8]} 27. Ra3 {[%clk 0:00:38.7]} 27...
Nf2+ {[%clk 0:00:31.4]} 28. Rxf2 {[%clk 0:00:39.6]} 28... Rxf2 {[%clk
0:00:31.8]} 29. a6 {[%clk 0:00:41.1]} 29... Kc7 {[%clk 0:00:25.6]} 30. Ne5
{[%clk 0:00:40.8]} 30... Bb1 {[%clk 0:00:18.4]} 31. b6+ {[%clk 0:00:40.3]} 31...
Kd8 {[%clk 0:00:17.5]} 32. a7 {[%clk 0:00:39.4]} 32... Bc2+ {[%clk 0:00:15.2]}
33. Kc1 {[%clk 0:00:39.6]} 1-0

[Event "*** Titled Tuesday Blitz"]
[Site "Chess.com"]
[Date "2018.06.05"]
[Round "9"]
[White "francogreek"]
[Black "sergeikim"]
[Result "1-0"]
[WhiteElo "2274"]
[BlackElo "2366"]
[TimeControl "180+2"]
[EndTime "15:09:35 PDT"]
[Termination "francogreek won on time"]

1. e4 {[%clk 0:03:01.9]} 1... e5 {[%clk 0:03:00.5]} 2. Nf3 {[%clk 0:03:01.4]}
2... Nc6 {[%clk 0:03:01.3]} 3. Bb5 {[%clk 0:03:01.8]} 3... a6 {[%clk 0:03:02.1]}
4. Ba4 {[%clk 0:03:02]} 4... Nf6 {[%clk 0:03:02.9]} 5. d3 {[%clk 0:03:01.6]}
5... b5 {[%clk 0:03:02.6]} 6. Bb3 {[%clk 0:03:01.9]} 6... Be7 {[%clk 0:03:03.6]}
7. O-O {[%clk 0:03:03]} 7... O-O {[%clk 0:03:04.1]} 8. a3 {[%clk 0:03:02]} 8...
d6 {[%clk 0:03:04.8]} 9. Nc3 {[%clk 0:03:02.3]} 9... Be6 {[%clk 0:02:49.4]} 10.
Bxe6 {[%clk 0:02:59.9]} 10... fxe6 {[%clk 0:02:49.6]} 11. Ng5 {[%clk 0:03:00.8]}
11... Qd7 {[%clk 0:02:48.2]} 12. f4 {[%clk 0:03:01.4]} 12... Nd4 {[%clk
0:02:45.5]} 13. fxe5 {[%clk 0:03:00.3]} 13... dxe5 {[%clk 0:02:45.3]} 14. Be3
{[%clk 0:02:57.9]} 14... c5 {[%clk 0:02:34.9]} 15. Qd2 {[%clk 0:02:53.4]} 15...
h6 {[%clk 0:02:32]} 16. Nf3 {[%clk 0:02:51.9]} 16... Ng4 {[%clk 0:02:31.5]} 17.
Bxd4 {[%clk 0:02:12.8]} 17... exd4 {[%clk 0:02:28.4]} 18. Nd1 {[%clk 0:02:11.6]}
18... Bf6 {[%clk 0:01:36.4]} 19. Qf4 {[%clk 0:01:56.2]} 19... e5 {[%clk
0:01:28.5]} 20. Qg3 {[%clk 0:01:54.5]} 20... Ne3 {[%clk 0:00:56.8]} 21. Nxe3
{[%clk 0:01:54.2]} 21... dxe3 {[%clk 0:00:57.7]} 22. Rae1 {[%clk 0:01:52.4]}
22... c4 {[%clk 0:00:58.6]} 23. Rxe3 {[%clk 0:01:49.9]} 23... Qa7 {[%clk
0:00:57.2]} 24. Re1 {[%clk 0:01:44.5]} 24... Be7 {[%clk 0:00:50.6]} 25. Qxe5
{[%clk 0:01:37.9]} 25... Rxf3 {[%clk 0:00:40.2]} 26. gxf3 {[%clk 0:01:30.9]}
26... Bc5 {[%clk 0:00:40.8]} 27. Kf2 {[%clk 0:01:13.3]} 27... Rf8 {[%clk
0:00:27.2]} 28. Qd5+ {[%clk 0:01:09.4]} 28... Kh8 {[%clk 0:00:26.9]} 29. e5
{[%clk 0:01:07.6]} 29... cxd3 {[%clk 0:00:20.9]} 30. cxd3 {[%clk 0:01:05.5]}
30... Bxe3+ {[%clk 0:00:21.4]} 31. Rxe3 {[%clk 0:01:05.7]} 31... Qe7 {[%clk
0:00:22.4]} 32. Qe4 {[%clk 0:01:02]} 32... Qc5 {[%clk 0:00:20]} 33. d4 {[%clk
0:01:02]} 33... Qc1 {[%clk 0:00:19.6]} 34. e6 {[%clk 0:01:02.2]} 34... Qxb2+
{[%clk 0:00:18.4]} 35. Re2 {[%clk 0:01:02.5]} 35... Qxa3 {[%clk 0:00:19.4]} 36.
e7 {[%clk 0:00:57.8]} 36... Re8 {[%clk 0:00:20.2]} 37. Qe6 {[%clk 0:00:58.9]}
37... Qb4 {[%clk 0:00:15.9]} 38. Qd7 {[%clk 0:01:00]} 1-0

[Event "*** Titled Tuesday Blitz"]
[Site "Chess.com"]
[Date "2018.06.05"]
[Round "9"]
[White "Gvalch"]
[Black "Muguet7"]
[Result "0-1"]
[WhiteElo "2588"]
[BlackElo "2355"]
[TimeControl "180+2"]
[EndTime "15:09:38 PDT"]
[Termination "Muguet7 won on time"]

1. d4 {[%clk 0:03:01.9]} 1... Nf6 {[%clk 0:03:00.4]} 2. c4 {[%clk 0:03:03.3]}
2... e6 {[%clk 0:03:01.3]} 3. g3 {[%clk 0:03:04.8]} 3... d5 {[%clk 0:02:59.7]}
4. Bg2 {[%clk 0:03:05.9]} 4... Bb4+ {[%clk 0:03:00.6]} 5. Nd2 {[%clk 0:03:06.4]}
5... O-O {[%clk 0:02:43.5]} 6. Nf3 {[%clk 0:03:07.4]} 6... Be7 {[%clk
0:02:34.4]} 7. O-O {[%clk 0:03:07.6]} 7... Nbd7 {[%clk 0:02:34.1]} 8. Qc2 {[%clk
0:03:08.4]} 8... b6 {[%clk 0:02:31]} 9. e4 {[%clk 0:02:50.2]} 9... dxe4 {[%clk
0:02:27.6]} 10. Nxe4 {[%clk 0:02:50.5]} 10... Bb7 {[%clk 0:02:24.6]} 11. Nc3
{[%clk 0:02:40.1]} 11... c5 {[%clk 0:02:18.5]} 12. d5 {[%clk 0:02:20.7]} 12...
exd5 {[%clk 0:02:17.5]} 13. cxd5 {[%clk 0:02:22.6]} 13... Nxd5 {[%clk
0:02:07.6]} 14. Rd1 {[%clk 0:02:22.7]} 14... Nxc3 {[%clk 0:01:52.9]} 15. bxc3
{[%clk 0:02:22]} 15... Qc8 {[%clk 0:01:36.8]} 16. Bf4 {[%clk 0:01:29.4]} 16...
Nf6 {[%clk 0:01:32.6]} 17. Bd6 {[%clk 0:01:11.4]} 17... Re8 {[%clk 0:01:24.2]}
18. Be5 {[%clk 0:00:50.3]} 18... Be4 {[%clk 0:01:20.9]} 19. Qb2 {[%clk 0:00:41]}
19... Qc6 {[%clk 0:01:15]} 20. Ne1 {[%clk 0:00:35.4]} 20... Bxg2 {[%clk
0:01:12.4]} 21. Nxg2 {[%clk 0:00:37.3]} 21... Rad8 {[%clk 0:01:07.4]} 22. c4
{[%clk 0:00:38.2]} 22... Qf3 {[%clk 0:01:00]} 23. Ne3 {[%clk 0:00:37.3]} 23...
h5 {[%clk 0:00:49.7]} 24. Qb3 {[%clk 0:00:22.6]} 24... Ne4 {[%clk 0:00:47.8]}
25. Nd5 {[%clk 0:00:17.8]} 25... Qxf2+ {[%clk 0:00:41.5]} 26. Kh1 {[%clk
0:00:19]} 26... Bg5 {[%clk 0:00:24.3]} 27. Bb2 {[%clk 0:00:14.2]} 27... Nd2
{[%clk 0:00:18.4]} 28. Qc3 {[%clk 0:00:14.9]} 28... f6 {[%clk 0:00:17.7]} 29. a4
{[%clk 0:00:03.4]} 29... Re2 {[%clk 0:00:18.4]} 30. Nxf6+ {[%clk 0:00:02.8]}
30... gxf6 {[%clk 0:00:18.6]} 0-1